bitfinex/quotes_BTCUSD_20250303
["timestamp","ask_amount","ask_price","bid_price","bid_amount"]
[1740990851988,0.0004607,92216.0,92215.0,1.2773666]
[1740990852212,0.0004607,92216.0,92215.0,1.3273666]
[1740990852984,0.0004607,92216.0,92215.0,1.2773666]
[1740990853201,0.0004607,92216.0,92215.0,1.3559266]
[1740990853418,0.0004607,92216.0,92215.0,1.36663665]
[1740990853629,0.0004607,92216.0,92215.0,1.41663665]
[1740990854048,0.0004607,92216.0,92215.0,1.36663665]
[1740990855217,0.0004607,92216.0,92215.0,1.41663665]
[1740990856614,7e-07,92219.0,92218.0,0.05059467]
[1740990856908,0.0003402,92233.0,92232.0,0.47776852]
[1740990857587,0.0003402,92233.0,92232.0,0.54137907]
[1740990858033,0.0003402,92233.0,92232.0,0.50797904]
[1740990858271,0.0003402,92233.0,92232.0,0.54137907]
[1740990858520,0.0003402,92233.0,92232.0,0.56424399]
[1740990858736,0.0003402,92233.0,92232.0,0.64284399]
[1740990860366,0.0003402,92233.0,92232.0,0.24970314]
[1740990860595,0.0003402,92233.0,92232.0,0.90486007]
[1740990860783,0.0003402,92233.0,92232.0,0.9042654]
[1740990861037,0.0003402,92233.0,92232.0,0.7389046]
[1740990861287,0.1629712,92233.0,92232.0,0.22161274]
[1740990862928,0.216846,92231.0,92216.0,0.23941199]
[1740990863158,0.162659,92217.0,92216.0,0.22161274]
[1740990863382,0.162659,92217.0,92216.0,0.24383348]
[1740990864092,0.239159,92218.0,92217.0,0.00059467]
[1740990864316,0.07839785,92218.0,92216.0,0.24383348]
[1740990864557,0.162659,92217.0,92216.0,0.22161274]
[1740990864786,0.0459,92217.0,92204.0,0.07944]
[1740990865014,0.54298,92205.0,92204.0,0.0001205]
[1740990865243,0.24298,92205.0,92204.0,0.0001205]
[1740990865467,0.24487814,92205.0,92204.0,0.0001205]
[1740990866835,0.24298,92205.0,92204.0,0.0001205]
[1740990869835,0.24298,92205.0,92188.0,0.22161274]
[1740990869836,0.216936,92193.0,92188.0,0.19532791]
[1740990870077,0.162709,92189.0,92188.0,0.19532791]
[1740990870316,0.293709,92189.0,92188.0,0.19575666]
[1740990870540,0.293709,92189.0,92188.0,0.00042875]
[1740990872545,0.30455067,92189.0,92188.0,0.00042875]
[1740990873030,0.60455067,92189.0,92188.0,0.00042875]
[1740990874708,0.61065567,92189.0,92188.0,0.00042875]
[1740990876355,0.44794667,92189.0,92188.0,0.00042875]
[1740990876543,0.137105,92189.0,92188.0,0.00042875]
[1740990876986,0.088705,92189.0,92188.0,0.16313875]
[1740990877263,0.088705,92189.0,92188.0,0.20260181]
[1740990878020,0.251414,92189.0,92188.0,0.03989181]
[1740990878268,0.251414,92189.0,92169.0,0.7120251]
[1740990878269,0.162742,92170.0,92169.0,0.15084998]
[1740990878520,0.162742,92170.0,92169.0,0.1509705]
[1740990878744,0.24034094,92170.0,92169.0,0.1509705]
[1740990878964,0.59034094,92170.0,92169.0,5.2e-07]
[1740990879147,0.462769,92155.0,92136.0,0.14187458]
[1740990879377,0.462769,92155.0,92141.0,0.162793]
[1740990879554,0.217018,92159.0,92136.0,0.11504468]
[1740990879709,0.00189927,92158.0,92137.0,0.01150447]
[1740990879909,0.00189927,92158.0,92138.0,0.01454085]
[1740990880116,0.00189927,92158.0,92137.0,0.01150447]
[1740990880703,0.00189927,92166.0,92138.0,0.01454085]
[1740990880897,0.00189927,92166.0,92137.0,0.01150447]
[1740990881142,0.162771,92154.0,92144.0,0.01454085]
[1740990881400,0.162774,92152.0,92146.0,0.01454085]
[1740990881621,0.00189913,92151.0,92112.0,0.217126]
[1740990881840,0.381,92167.0,92112.0,0.217126]
[1740990881841,0.162795,92141.0,92112.0,0.217126]
[1740990882057,0.162795,92141.0,92139.0,0.02778971]
[1740990882280,0.16279,92143.0,92139.0,0.02778971]
[1740990882521,0.162795,92140.0,92139.0,0.02778971]
[1740990882750,0.162795,92140.0,92139.0,0.13672939]
[1740990883009,0.162795,92140.0,92139.0,0.12348053]
[1740990883465,0.162795,92140.0,92139.0,0.10893968]
[1740990883956,0.0783,92153.0,92139.0,0.10893968]
[1740990884196,0.00189934,92152.0,92139.0,0.10893968]
[1740990884419,0.162793,92141.0,92140.0,0.01454085]
[1740990885121,0.0783,92153.0,92140.0,0.01454085]
[1740990885343,0.162778,92150.0,92140.0,0.01454085]
[1740990885588,0.0018993,92149.0,92142.0,0.01454085]
[1740990885890,0.0018993,92149.0,92139.0,0.10893968]
[1740990885891,0.162779,92149.0,92144.0,0.01454085]
[1740990886112,0.00189926,92148.0,92144.0,0.01454085]
[1740990886355,0.0783,92153.0,92144.0,0.01454085]
[1740990886356,0.00189926,92152.0,92144.0,0.01454085]
[1740990886555,0.00189926,92152.0,92143.0,0.24569635]
[1740990886556,0.00189926,92155.0,92152.0,0.01454085]
[1740990886710,0.09336081,92163.0,92152.0,0.02170214]
[1740990886711,0.00189903,92162.0,92152.0,0.02170214]
[1740990886919,0.00189903,92162.0,92153.0,0.12348053]
[1740990886920,0.217011,92161.0,92153.0,0.12348053]
[1740990887121,0.00189902,92160.0,92153.0,0.12348053]
[1740990887447,0.162763,92159.0,92153.0,0.27171168]
[1740990887639,0.162762,92159.0,92154.0,0.01454085]
[1740990887859,0.216989,92171.0,92156.0,0.01454085]
[1740990888078,0.001899,92169.0,92154.0,0.01454085]
[1740990888284,0.162769,92155.0,92154.0,0.01454085]
[1740990888860,0.162771,92154.0,92153.0,0.10893968]
[1740990889481,0.244871,92154.0,92153.0,0.10893968]
[1740990890409,0.244871,92154.0,92143.0,0.07884]
[1740990890410,0.162788,92144.0,92143.0,0.07884]
[1740990892221,0.162795,92140.0,92139.0,0.12348053]
[1740990892420,0.162795,92140.0,92139.0,0.10893968]
[1740990894007,0.162799,92138.0,92137.0,0.00017]
[1740990894184,0.16469848,92138.0,92137.0,0.00017]
[1740990897341,0.0484,92160.0,92139.0,0.217063]
[1740990897459,0.01068231,92149.0,92140.0,0.04490192]
[1740990897658,0.00189934,92154.0,92141.0,0.01454085]
[1740990897914,0.00189934,92154.0,92139.0,0.01454085]
[1740990898076,0.00189934,92154.0,92137.0,0.00017]
[1740990898270,0.162795,92141.0,92137.0,0.00017]
[1740990898542,0.1646753,92151.0,92138.0,0.01454085]
[1740990898722,0.0018993,92151.0,92137.0,0.00017]
[1740990899180,0.162781,92149.0,92140.0,0.01454085]
[1740990899378,0.00189929,92149.0,92144.0,0.01454085]
[1740990899580,0.21893528,92151.0,92144.0,0.01454085]
[1740990899820,0.21893528,92151.0,92141.0,0.217056]
[1740990900091,0.00189928,92151.0,92138.0,0.10893968]
[1740990900295,0.162797,92139.0,92138.0,0.10893968]
[1740990900522,0.24249652,92139.0,92138.0,0.10893968]
[1740990900930,0.54249652,92139.0,92138.0,0.10893968]
[1740990901137,0.54249652,92139.0,92137.0,0.00017]
[1740990901138,0.511499,92138.0,92137.0,0.00017]
[1740990904618,0.0487,92138.0,92112.0,0.09682093]
[1740990904824,0.0778,92139.0,92112.0,0.0972229]
[1740990904997,0.0003408,92159.0,92115.0,0.3495]
[1740990904998,0.00189956,92151.0,92115.0,0.3495]
[1740990905200,0.00189956,92151.0,92116.0,0.10891644]
[1740990905397,0.162781,92148.0,92117.0,0.3]
[1740990905629,0.16468341,92147.0,92134.0,0.162805]
[1740990905968,0.00189941,92147.0,92136.0,0.162802]
[1740990906246,0.217046,92146.0,92137.0,0.04767069]
[1740990906471,0.217046,92146.0,92135.0,0.09682093]
[1740990906472,0.162802,92136.0,92135.0,0.09682093]
[1740990906773,0.162802,92136.0,92135.0,0.11136178]
[1740990907007,0.00189939,92139.0,92136.0,0.01454085]
[1740990907210,0.162801,92137.0,92136.0,0.01454085]
[1740990907381,0.00189947,92139.0,92136.0,0.01454085]
[1740990907582,0.16469847,92139.0,92136.0,0.01454085]
[1740990907807,0.162801,92137.0,92136.0,0.01454085]
[1740990908641,0.16470053,92137.0,92136.0,0.01471125]
[1740990908847,0.16470053,92137.0,92136.0,0.0001704]
[1740990908848,0.24780053,92137.0,92136.0,0.0001704]
[1740990909057,0.29710053,92137.0,92136.0,0.0001704]
[1740990909207,0.295201,92137.0,92136.0,0.0001704]
[1740990909616,0.217081,92132.0,92114.0,0.01454085]
[1740990909815,0.162834,92118.0,92116.0,0.01454085]
[1740990910019,0.1324,92137.0,92115.0,0.01454085]
[1740990910020,0.00189983,92117.0,92115.0,0.01454085]
[1740990910221,0.1324,92137.0,92115.0,0.01454085]
[1740990910222,0.00189984,92128.0,92115.0,0.01454085]
[1740990910592,0.162812,92131.0,92117.0,0.01454085]
[1740990910816,0.00189974,92130.0,92117.0,0.01454085]
[1740990911037,0.00189956,92145.0,92114.0,0.39682093]
[1740990911238,0.00189956,92145.0,92134.0,0.01454085]
[1740990911388,0.00189956,92145.0,92138.0,0.01454085]
[1740990911569,0.00189949,92152.0,92142.0,0.01354085]
[1740990911770,0.00189949,92152.0,92146.0,0.162784]
[1740990911982,0.00189923,92155.0,92142.0,0.01354085]
[1740990912181,0.00189923,92155.0,92142.0,0.17533185]
[1740990912381,0.00189923,92155.0,92142.0,0.01254085]
[1740990912609,0.00189923,92155.0,92143.0,0.01039711]
[1740990912809,0.162778,92150.0,92143.0,0.01039711]
[1740990912970,0.00189927,92149.0,92143.0,0.01039711]
[1740990913418,0.162788,92144.0,92143.0,0.01039711]
[1740990913592,0.00189927,92146.0,92143.0,0.01039711]
[1740990914112,0.162786,92145.0,92144.0,0.02103272]
[1740990914327,0.162786,92145.0,92144.0,0.01454085]
[1740990914813,0.1628,92138.0,92137.0,0.01454085]
[1740990914988,0.16469942,92138.0,92137.0,0.01454085]
[1740990915188,0.16469942,92138.0,92136.0,0.07884]
[1740990915189,0.162801,92137.0,92136.0,0.07884]
[1740990915602,0.162801,92137.0,92116.0,0.07856]
[1740990915603,0.13558274,92137.0,92116.0,0.07856]
[1740990915817,0.162825,92123.0,92122.0,0.00040197]
[1740990916060,0.16472475,92123.0,92122.0,0.00040197]
[1740990917906,0.17554813,92123.0,92122.0,0.00040197]
[1740990918510,0.17654813,92123.0,92122.0,0.02194282]
[1740990918884,0.16472475,92123.0,92122.0,0.03344719]
[1740990919488,0.46472479,92123.0,92122.0,0.02194282]
[1740990919691,0.49381613,92123.0,92122.0,0.02194282]
[1740990920481,0.49381613,92123.0,92122.0,0.02211322]
[1740990920908,0.49281613,92123.0,92122.0,0.01511322]
[1740990921279,0.49281613,92123.0,92122.0,0.01911322]
[1740990924702,0.49281613,92123.0,92122.0,0.00211321]
[1740990926842,0.49281613,92123.0,92122.0,0.01665406]
[1740990927051,0.03099113,92123.0,92122.0,0.01665406]
[1740990927256,0.03097976,92141.0,92123.0,0.17736585]
[1740990927415,0.16281,92132.0,92125.0,0.01454085]
[1740990927628,0.16281,92132.0,92122.0,0.02548982]
[1740990927629,0.03097766,92131.0,92130.0,0.17735385]
[1740990927831,0.0003408,92142.0,92141.0,0.162793]
[1740990928054,0.0003408,92142.0,92141.0,0.03082015]
[1740990928434,0.0003408,92142.0,92141.0,0.01354085]
[1740990928654,0.0003408,92142.0,92141.0,0.0138629]
[1740990929038,0.1631328,92142.0,92141.0,0.0148629]
[1740990929244,0.1631328,92142.0,92141.0,0.0138629]
[1740990929245,0.0003408,92142.0,92141.0,0.0138629]
[1740990929629,0.0003408,92142.0,92141.0,0.1766559]
[1740990929854,0.0003408,92142.0,92141.0,0.23773499]
[1740990930376,0.00189919,92165.0,92158.0,0.162763]
[1740990930590,0.00189894,92175.0,92158.0,0.17730385]
[1740990930825,0.00189881,92184.0,92158.0,0.17730385]
[1740990931027,0.216904,92207.0,92158.0,0.17730385]
[1740990931028,0.17354355,92182.0,92158.0,0.18812222]
[1740990931237,0.00189853,92181.0,92158.0,0.18812222]
[1740990931433,0.00189853,92181.0,92158.0,0.18712222]
[1740990931633,0.0007422,92159.0,92158.0,0.27879454]
[1740990931837,0.0007422,92159.0,92158.0,0.26797617]
[1740990932074,0.0017422,92159.0,92158.0,0.27497617]
[1740990932288,0.09585956,92179.0,92178.0,0.162728]
[1740990932492,0.09596844,92179.0,92178.0,0.55578885]
[1740990932781,0.09596844,92179.0,92178.0,0.56882327]
[1740990932982,0.09596844,92179.0,92178.0,0.40709527]
[1740990933413,0.09596844,92179.0,92178.0,0.56982327]
[1740990933999,0.07196844,92179.0,92178.0,0.56982327]
[1740990934871,0.07196844,92179.0,92178.0,0.57682327]
[1740990935034,0.07196844,92179.0,92178.0,0.56982327]
[1740990935519,0.00010888,92179.0,92178.0,0.57682327]
[1740990936781,0.00189792,92223.0,92209.0,0.162672]
[1740990936955,0.00189792,92223.0,92211.0,0.01454085]
[1740990937156,0.00189792,92223.0,92213.0,0.01454085]
[1740990937438,0.00189792,92223.0,92211.0,0.01454085]
[1740990937774,0.00189782,92222.0,92211.0,0.01454085]
[1740990938152,0.0001205,92224.0,92212.0,0.01454085]
[1740990938397,0.0001205,92224.0,92223.0,0.01454085]
[1740990938864,0.0001205,92224.0,92221.0,0.01454085]
[1740990939142,0.0001205,92224.0,92222.0,0.01454085]
[1740990939313,0.1627685,92224.0,92222.0,0.01454085]
[1740990939514,0.162655,92220.0,92213.0,0.01454085]
[1740990939732,0.162655,92220.0,92215.0,0.01454085]
[1740990939938,0.0001205,92224.0,92215.0,0.01454085]
[1740990940093,0.162652,92222.0,92215.0,0.01454085]
[1740990940307,0.0001205,92224.0,92215.0,0.01454085]
[1740990940308,0.162649,92223.0,92215.0,0.01454085]
[1740990940538,0.0001205,92224.0,92215.0,0.01454085]
[1740990940539,0.162654,92220.0,92215.0,0.01454085]
[1740990940742,0.162654,92220.0,92210.0,0.0162672]
[1740990940743,0.162654,92220.0,92217.0,0.01454085]
[1740990940951,0.0001205,92224.0,92223.0,0.01754085]
[1740990941155,0.1627675,92224.0,92223.0,0.01754085]
[1740990941366,0.0001205,92224.0,92223.0,0.01454085]
[1740990942273,0.0001205,92224.0,92223.0,0.18018985]
[1740990942461,0.0001205,92224.0,92223.0,0.54351075]
[1740990944228,0.0001205,92224.0,92223.0,0.54051075]
[1740990944432,0.0001205,92224.0,92223.0,0.54751075]
[1740990944791,0.0001205,92224.0,92223.0,0.54051075]
[1740990944992,0.0001205,92224.0,92223.0,0.54751075]
[1740990945153,0.0004611,92224.0,92223.0,0.54751075]
[1740990945364,0.0004611,92224.0,92223.0,0.62391075]
[1740990945835,0.0004611,92224.0,92223.0,0.32154085]
[1740990946088,0.0004611,92224.0,92223.0,0.007]
[1740990946089,0.1631081,92224.0,92223.0,0.007]
[1740990946401,0.0004611,92224.0,92223.0,0.18418985]
[1740990946516,0.0004611,92224.0,92223.0,0.02154085]
[1740990946717,0.0004611,92224.0,92223.0,0.18418985]
[1740990946938,0.1631081,92224.0,92223.0,0.02154085]
[1740990947482,0.0004611,92224.0,92223.0,0.02154085]
[1740990947685,0.0004611,92224.0,92223.0,0.18418985]
[1740990948313,0.0004611,92224.0,92223.0,0.02154085]
[1740990948536,0.1631081,92224.0,92223.0,0.007]
[1740990949518,0.17399247,92224.0,92223.0,0.007]
[1740990949930,0.1631081,92224.0,92223.0,0.007]
[1740990950289,0.0004611,92224.0,92215.0,0.01454085]
[1740990950506,0.162658,92218.0,92217.0,0.01454085]
[1740990952304,0.162673,92209.0,92208.0,0.01454085]
[1740990952525,0.01153297,92224.0,92208.0,0.01454085]
[1740990952752,0.162668,92212.0,92208.0,0.01454085]
[1740990952984,0.00189771,92223.0,92208.0,0.01454085]
[1740990953209,0.162673,92209.0,92208.0,0.01454085]
[1740990953427,0.01153297,92224.0,92208.0,0.01454085]
[1740990953672,0.0004611,92224.0,92209.0,0.216898]
[1740990953885,0.0004611,92224.0,92215.0,0.01454085]
[1740990954126,0.0004611,92224.0,92223.0,0.17718985]
[1740990954346,0.0004611,92224.0,92223.0,0.19636292]
[1740990955286,0.0004611,92224.0,92223.0,0.03371392]
[1740990955528,0.0004611,92224.0,92223.0,0.19636292]
[1740990955762,0.0004611,92224.0,92223.0,0.20336292]
[1740990957092,0.0004611,92224.0,92223.0,0.04071392]
[1740990957519,0.0003017,92231.0,92223.0,0.01454085]
[1740990957718,0.0003017,92231.0,92230.0,0.17717685]
[1740990958279,0.0003017,92231.0,92230.0,0.01454085]
[1740990958883,0.0003017,92231.0,92230.0,0.02154085]
[1740990959086,0.1629367,92231.0,92230.0,0.01454085]
[1740990959484,0.0003017,92231.0,92230.0,0.02154085]
[1740990959896,0.0003017,92231.0,92230.0,0.06164514]
[1740990960321,0.1629367,92231.0,92230.0,0.06164514]
[1740990960527,0.1629367,92231.0,92230.0,0.02154085]
[1740990960728,0.1629367,92231.0,92230.0,0.01454085]
[1740990960903,0.1629367,92231.0,92230.0,0.02154085]
[1740990964286,0.1629367,92231.0,92230.0,0.01454085]
[1740990964688,0.1629367,92231.0,92230.0,0.01854085]
[1740990964931,0.1629367,92231.0,92230.0,0.01454085]
[1740990965339,0.1629367,92231.0,92230.0,0.01854085]
[1740990966663,0.19389157,92231.0,92230.0,0.01854085]
[1740990968777,0.03125657,92231.0,92230.0,0.01854085]
[1740990969013,0.0003017,92231.0,92230.0,0.20471614]
[1740990969422,0.1629367,92231.0,92230.0,0.01854085]
[1740990969625,0.16483435,92231.0,92230.0,0.01871105]
[1740990969865,0.0003017,92231.0,92230.0,0.18134705]
[1740990970124,0.0003017,92231.0,92230.0,0.19948176]
[1740990970376,0.0003017,92231.0,92230.0,0.03684576]
[1740990970644,0.0003017,92231.0,92230.0,0.03284576]
[1740990970898,0.0003017,92231.0,92230.0,0.20248176]
[1740990971145,0.0003017,92231.0,92230.0,0.19548176]
[1740990971607,0.0003017,92231.0,92230.0,0.20148176]
[1740990971839,0.0003017,92231.0,92230.0,0.19548176]
[1740990972067,0.0003017,92231.0,92230.0,0.20148176]
[1740990972278,0.1629367,92231.0,92230.0,0.03884576]
[1740990972403,0.0003017,92231.0,92230.0,0.01471105]
[1740990972605,0.0003017,92231.0,92230.0,0.17734705]
[1740990973412,0.0003017,92231.0,92230.0,0.01471105]
[1740990973823,0.0003017,92231.0,92230.0,0.02171105]
[1740990974029,0.0003017,92231.0,92230.0,0.21746786]
[1740990974294,0.0003017,92231.0,92230.0,1.08836786]
[1740990974468,0.0003017,92231.0,92230.0,1.09536786]
[1740990974637,0.0003017,92231.0,92230.0,1.08836786]
[1740990975039,0.0003017,92231.0,92230.0,1.09436786]
[1740990975359,0.0003017,92231.0,92230.0,1.08836786]
[1740990975719,0.0003017,92231.0,92230.0,1.09536786]
[1740990977389,0.0003017,92231.0,92230.0,1.39536786]
[1740990977590,0.0003017,92231.0,92230.0,1.47756786]
[1740990978002,0.0003017,92231.0,92230.0,1.47788976]
[1740990978839,0.0003017,92231.0,92230.0,1.47788975]
[1740990979153,0.0003017,92231.0,92230.0,1.52368975]
[1740990979363,0.0003017,92231.0,92230.0,1.52368974]
[1740990979553,0.0003402,92233.0,92230.0,1.52368974]
[1740990979554,0.0003402,92233.0,92232.0,0.462633]
[1740990979705,0.0003406,92235.0,92232.0,0.462633]
[1740990979706,6e-07,92235.0,92234.0,0.462629]
[1740990979912,6e-07,92235.0,92234.0,0.47749173]
[1740990980126,6e-07,92235.0,92234.0,0.47749172]
[1740990981133,6e-07,92235.0,92234.0,0.48449172]
[1740990982110,6e-07,92235.0,92234.0,0.47749172]
[1740990982311,6e-07,92235.0,92234.0,0.52561691]
[1740990983407,6e-07,92235.0,92234.0,0.5256169]
[1740990984264,0.0004,92259.0,92238.0,0.462622]
[1740990984469,0.0004,92259.0,92238.0,0.55588471]
[1740990985224,0.0004,92259.0,92238.0,1.42678471]
[1740990985547,0.0004,92259.0,92238.0,1.47390552]
[1740990985751,0.0004,92259.0,92238.0,1.47390551]
[1740990985956,2e-07,92248.0,92247.0,0.60114685]
[1740990986175,2e-07,92248.0,92247.0,1.47236869]
[1740990986312,2e-07,92248.0,92247.0,1.58128513]
[1740990986512,2e-07,92248.0,92247.0,1.63128512]
[1740990986921,2e-07,92248.0,92247.0,1.58128512]
[1740990987116,2e-07,92248.0,92247.0,1.58128511]
[1740990987341,2e-07,92248.0,92247.0,1.58828511]
[1740990987786,2e-07,92248.0,92247.0,1.63828511]
[1740990988170,2e-07,92248.0,92247.0,1.6312851]
[1740990989122,0.0004,92259.0,92248.0,0.31454085]
[1740990989340,0.00080151,92259.0,92258.0,0.47712785]
[1740990989778,0.00080151,92259.0,92258.0,0.47744966]
[1740990990159,0.00080151,92259.0,92258.0,0.47744965]
[1740990990403,0.00080151,92259.0,92258.0,0.55584965]
[1740990990700,0.00080151,92259.0,92258.0,0.0003218]
[1740990990944,0.00080151,92259.0,92258.0,0.43453318]
[1740990991194,0.00080151,92259.0,92258.0,0.60466103]
[1740990991456,0.00080151,92259.0,92258.0,0.43453318]
[1740990991708,0.16338651,92259.0,92258.0,0.3344218]
[1740990991970,0.00080151,92259.0,92258.0,0.3274218]
[1740990992178,0.00080151,92259.0,92258.0,0.34196265]
[1740990992407,0.00080151,92259.0,92258.0,0.34196264]
[1740990992663,0.00080151,92259.0,92258.0,0.38208345]
[1740990992907,0.16338651,92259.0,92258.0,0.38208345]
[1740990993144,0.16338651,92259.0,92258.0,0.3675426]
[1740990993344,0.17488433,92259.0,92258.0,0.00732179]
[1740990993990,0.17488433,92259.0,92258.0,0.00032179]
[1740990994432,0.25608135,92259.0,92258.0,0.00532179]
[1740990994651,0.25418433,92259.0,92258.0,0.00532179]
[1740990995746,0.08044191,92259.0,92258.0,0.18244964]
[1740990995947,0.00114191,92259.0,92258.0,0.2223738]
[1740990996149,0.00114191,92259.0,92258.0,0.5494738]
[1740990997296,0.00114191,92259.0,92258.0,0.5444738]
[1740990997499,0.00114191,92259.0,92258.0,0.55147379]
[1740990998147,0.16372691,92259.0,92258.0,0.34896263]
[1740990999081,0.00114191,92259.0,92258.0,0.51154963]
[1740990999538,0.00114191,92259.0,92258.0,0.85864963]
[1740990999766,0.00114191,92259.0,92258.0,0.85864962]
[1740990999992,0.00114191,92259.0,92258.0,0.97857358]
[1740991000221,0.00114191,92259.0,92258.0,1.52237358]
[1740991000438,0.00114191,92259.0,92258.0,1.51537358]
[1740991000675,0.00114191,92259.0,92258.0,1.52237358]
[1740991000912,0.00114191,92259.0,92258.0,1.51537358]
[1740991001372,0.00114191,92259.0,92258.0,1.52237357]
[1740991001610,0.00114191,92259.0,92258.0,1.46426605]
[1740991002804,0.01104265,92297.0,92271.0,0.47710485]
[1740991003060,0.01104265,92297.0,92271.0,1.39603709]
[1740991003061,0.00046103,92272.0,92271.0,1.39603709]
[1740991003742,0.00046103,92272.0,92271.0,1.39603708]
[1740991003963,0.00046103,92272.0,92271.0,1.23347308]
[1740991004230,0.16302303,92272.0,92271.0,0.94970174]
[1740991004471,0.16302303,92272.0,92271.0,0.41290173]
[1740991004718,0.17370616,92272.0,92271.0,0.33442173]
[1740991004947,0.17370616,92272.0,92271.0,0.00732173]
[1740991005199,0.20456354,92272.0,92271.0,0.00732173]
[1740991005413,0.17370616,92272.0,92271.0,0.00732173]
[1740991005664,0.2045729,92272.0,92271.0,0.00732173]
[1740991006516,0.6822729,92272.0,92271.0,0.00032173]
[1740991006721,0.05,92264.0,92248.0,0.0003404]
[1740991006933,0.243903,92249.0,92248.0,0.0003404]
[1740991007315,0.24580039,92249.0,92248.0,0.0003404]
[1740991007925,0.243903,92249.0,92248.0,0.01788125]
[1740991008895,0.0776,92264.0,92249.0,0.01454085]
[1740991009068,0.03279867,92263.0,92248.0,0.0003404]
[1740991009286,0.03090162,92262.0,92248.0,0.0003404]
[1740991009479,0.162598,92252.0,92249.0,0.01454085]
[1740991009688,0.00189705,92261.0,92251.0,0.01454085]
[1740991009867,0.00189705,92261.0,92250.0,0.01844913]
[1740991009868,0.00046103,92272.0,92253.0,0.01454085]
[1740991010068,0.24955605,92271.0,92255.0,0.01454085]
[1740991010242,0.03091339,92270.0,92253.0,0.01454085]
[1740991010469,0.00046103,92272.0,92257.0,0.01454085]
[1740991010470,0.00189684,92269.0,92257.0,0.01454085]
[1740991010889,0.216759,92268.0,92257.0,0.01454085]
[1740991011123,0.162587,92258.0,92257.0,0.01454085]
[1740991012007,0.162564,92271.0,92257.0,0.01454085]
[1740991012239,0.00189685,92270.0,92257.0,0.01454085]
[1740991012423,0.162572,92267.0,92261.0,0.17712085]
[1740991012619,0.162572,92267.0,92261.0,0.01454085]
[1740991013099,0.162574,92266.0,92261.0,0.01454085]
[1740991013314,0.162571,92267.0,92261.0,0.162581]
[1740991013498,0.162566,92270.0,92264.0,0.01454085]
[1740991013716,0.00235781,92272.0,92267.0,0.16257]
[1740991013937,0.00235767,92272.0,92267.0,0.01454085]
[1740991014138,0.162569,92268.0,92267.0,0.01454085]
[1740991014828,0.00046103,92272.0,92266.0,0.31464085]
[1740991015047,0.162566,92270.0,92266.0,0.31464085]
[1740991015257,0.216752,92271.0,92266.0,0.31464085]
[1740991015476,0.162571,92267.0,92266.0,0.31464085]
[1740991016394,0.162571,92267.0,92266.0,0.31764085]
[1740991016652,0.19350494,92267.0,92266.0,0.31764085]
[1740991016851,0.03093394,92267.0,92266.0,0.31464085]
[1740991017074,0.03093394,92267.0,92266.0,0.36094578]
[1740991017282,0.03093394,92268.0,92267.0,0.01454085]
[1740991017490,0.162569,92268.0,92267.0,0.01454085]
[1740991017706,0.19350741,92268.0,92267.0,0.01454085]
[1740991018112,0.162571,92267.0,92266.0,0.004]
[1740991018329,0.19540633,92267.0,92266.0,0.004]
[1740991018753,0.16258,92262.0,92261.0,0.0003402]
[1740991018956,0.1954154,92262.0,92261.0,0.0003402]
[1740991019598,0.0328354,92262.0,92261.0,0.0003402]
[1740991019848,0.00235801,92272.0,92261.0,0.0003402]
[1740991020266,0.03283381,92271.0,92263.0,0.01454085]
[1740991020499,0.03283381,92271.0,92262.0,0.01454085]
[1740991020744,0.162578,92263.0,92262.0,0.01454085]
[1740991021252,1.0809146,92346.0,92262.0,0.01454085]
[1740991021468,0.00189659,92283.0,92271.0,0.17710485]
[1740991021702,0.162549,92280.0,92271.0,0.05392683]
[1740991021950,0.10685824,92287.0,92271.0,0.05392683]
[1740991021951,0.16302303,92272.0,92271.0,0.01454085]
[1740991022204,0.2753485,92272.0,92271.0,0.01454085]
[1740991022483,0.27345166,92272.0,92271.0,0.01454085]
[1740991023484,0.27345166,92272.0,92271.0,0.01554085]
[1740991023929,0.03138966,92272.0,92271.0,0.01554085]
[1740991024140,0.03138966,92272.0,92271.0,0.17810485]
[1740991024349,0.03138966,92272.0,92271.0,0.21759084]
[1740991024551,0.00046103,92272.0,92271.0,0.21759084]
[1740991024769,0.00046103,92272.0,92271.0,0.03948599]
[1740991024975,0.00046103,92272.0,92262.0,0.31464085]
[1740991025391,0.00046103,92272.0,92269.0,0.162567]
[1740991025604,0.00046103,92272.0,92271.0,0.004]
[1740991025770,0.00046103,92272.0,92270.0,0.162566]
[1740991025938,0.00046103,92272.0,92262.0,0.31464085]
[1740991026151,0.00046103,92272.0,92263.0,0.05317581]
[1740991026685,0.00046103,92272.0,92264.0,0.01454085]
[1740991026898,0.162566,92270.0,92264.0,0.01454085]
[1740991027229,0.00046103,92272.0,92270.0,0.01454085]
[1740991027469,0.00046103,92272.0,92271.0,0.17710485]
[1740991027618,0.00046103,92272.0,92271.0,0.21854502]
[1740991028035,0.00046103,92272.0,92271.0,0.17710485]
[1740991028595,0.00046103,92272.0,92271.0,0.01454085]
[1740991029251,0.00046103,92272.0,92271.0,0.17710485]
[1740991029874,0.00046103,92272.0,92271.0,0.02054085]
[1740991031028,0.16302303,92272.0,92271.0,0.02054085]
[1740991031376,0.00046103,92272.0,92271.0,0.05405902]
[1740991031808,0.00046103,92272.0,92271.0,0.21662302]
[1740991032256,0.00046103,92272.0,92271.0,0.05405902]
[1740991032462,0.00046103,92272.0,92271.0,0.02054085]
[1740991033378,0.00046103,92272.0,92271.0,0.18310485]
[1740991033798,0.00046103,92272.0,92271.0,0.02054085]
[1740991034438,0.00046103,92272.0,92271.0,0.4977457]
[1740991038106,0.00046103,92272.0,92271.0,1.3415457]
[1740991038304,0.09577225,92303.0,92280.0,0.01454085]
[1740991038552,0.09577225,92303.0,92283.0,0.01454085]
[1740991038759,0.09577225,92303.0,92296.0,0.01454085]
[1740991038970,0.09577225,92303.0,92296.0,0.17706085]
[1740991039196,0.09577225,92303.0,92296.0,0.01454085]
[1740991039489,0.0014,92299.0,92298.0,0.01454085]
[1740991039647,0.0004,92299.0,92298.0,0.01454085]
[1740991039883,0.0004,92299.0,92298.0,0.17705785]
[1740991040143,0.0004,92299.0,92298.0,0.7916987]
[1740991040381,0.0004,92299.0,92298.0,1.3824987]
[1740991040589,0.0004,92299.0,92298.0,1.44224085]
[1740991041146,0.0004,92299.0,92298.0,1.43733053]
[1740991043206,0.0004,92299.0,92298.0,1.43133053]
[1740991043426,0.0005703,92299.0,92298.0,1.43133053]
[1740991044083,0.0005703,92299.0,92298.0,1.43833053]
[1740991044328,0.0140176,92306.0,92305.0,0.47704485]
[1740991044561,0.01413796,92306.0,92305.0,1.44440214]
[1740991046498,0.01413796,92306.0,92305.0,1.45140214]
[1740991047845,0.0003402,92324.0,92310.0,0.462495]
[1740991048024,0.0003402,92324.0,92310.0,1.4184767]
[1740991048223,0.0003402,92324.0,92310.0,1.45089087]
[1740991049227,0.0003402,92324.0,92310.0,1.45789087]
[1740991049431,0.0003402,92324.0,92310.0,1.28375587]